{"text_format":"1","workbook":"xlsx","n_sheets":3,"sheets":["Report","Data","Sum Report Form"],"not_rendered":{"charts":0,"images":0,"macros":1,"external_links":0,"defined_names":3,"comments":0,"pivot_tables":0},"unopened":[],"bounds":{"document_bytes":16777216,"sheet_cells":100000,"rows_first":2000,"rows_last":500,"rows_between":2000,"halvings":0,"cell_chars":16384,"cell_head_chars":4096},"cells_cut":0,"cells_raw":0,"read":"whole","date_system":"1900"}

{"sheet":"Report","index":0,"n_rows":65,"n_cols":10,"rows_kept":65,"cut":false,"hidden":false,"merged":[[36,0,36,1],[42,7,42,9],[46,8,46,9],[18,5,18,7],[43,5,43,6],[32,7,32,8],[33,7,33,8],[26,8,26,9],[27,8,27,9],[25,2,25,3],[15,2,15,3],[14,0,14,1],[14,3,14,4],[16,5,16,9],[17,5,17,9],[22,3,22,4],[23,3,23,4],[22,6,22,7],[23,6,23,7],[24,0,24,1],[1,0,1,9],[2,0,2,9],[20,9,21,9],[20,2,20,4],[21,3,21,4],[20,5,20,7],[21,6,21,7],[19,0,19,2],[7,8,7,9],[10,5,10,6],[8,5,8,6],[14,5,14,6],[8,0,8,1],[9,0,9,1],[10,0,10,1],[9,3,9,4],[62,3,62,4],[0,4,0,5],[0,1,0,3],[0,6,0,8],[36,2,36,3],[43,0,43,3],[43,8,43,9],[30,0,30,2],[13,7,13,8],[14,8,14,9],[20,0,21,0],[13,0,13,2],[30,3,30,6],[9,5,9,6],[26,2,26,3],[6,0,6,1],[44,5,44,6],[44,8,44,9],[48,0,48,3],[50,0,50,2],[52,0,52,2],[47,6,47,9],[45,0,45,2],[45,7,45,9],[10,3,10,4],[8,8,8,9],[9,8,9,9],[10,8,10,9],[25,0,25,1],[15,0,15,1],[12,0,12,4],[11,7,11,9],[63,8,64,9],[63,6,63,7],[64,6,64,7],[63,0,64,2],[48,4,49,4],[60,0,60,2],[63,3,63,4],[62,6,62,9],[54,2,54,4],[55,3,55,4],[54,6,54,9],[53,6,53,9],[55,6,55,9],[64,3,64,4],[61,6,61,8],[61,3,61,4]]}
[null,"بِسْمِ اللہِ الرَّحْمٰنِ الرَّحِیْم      ",null,null,"نَحْمَدُہٗ وَنُصَلِّی عَلٰی رَسُوْلِہِ الْکَرِیْمِ   ",null,"   وَعَلٰی عَبْدِ ہِ الْمَسِیْحِ الْمَوْعُوْد       "]
["ماہانہ کارگزاری رپورٹ فارم مجالس انصاراللہ بھارت "]
["Monthly Report Form Majalis Ansarullah Bharat"]
["روانگی نمبر وتاریخ",null,"Dispatch No. & Date","نام مجلس","ضلع","صوبہ","بابت  ماہ","سال"," آمد دفتر"]
[null,null,null,"Majlis","Dist","State","Month","year"]
[]
["(1)شعبہ تجنید:",null,null,"Tajneed"]
[null,"تعداد سائقین",null,"No.of Saiqeen",null,null,"کیارجسٹرتجنیدمکمل ہے؟",null,"Is register tajneed completed?"]
["تعداد انصارصف اوّل",null,null,"No. of Ansar Saff-I",null,"تعداد موصیان صف اول ",null,null," Moosiyan Saff-I"]
["تعداد انصارصف دوم",null,null," No. of Ansar Saff-II",null,"            تعداد موصیان صف دوئم            ",null,null," Moosiyan Saff-II"]
["کل تجنیدانصار",null,null,"Total No. of Ansar",null,"تعداد موصیان مجلس عاملہ           ",null,null,"moosi Amila mem "]
["ماہ رواں میں نئے شاملین کے اسماء الگ سے بھیجیں",null,null,null,null,null,null,"فہرست تجنید سال نو31جنوری تک پہنچنا لازمی ہے"]
["*list of new changes should be sent accordingly",null,null,null,null,null,null,null,null,"Tajneed form must be submitted to markaz before 31 jan"]
["(2)شعبہ عمومی:",null,null,"Umoomi",null,"تعدادممبران عاملہ",null,"No. of Amila members"]
["تاریخ اجلاس عاملہ",null,null,"Amila meeting held on",null,"تاریخ اجلاس عاملہ برائےقیام نماز",null,null,"Spl.Amila meeting on namaz"]
["(3) شعبہ تعلیم:",null,"Taleem"]
[null,"               تعداد مطالعہ کتب حضرت مسیح موعودؑ کرنے والے انصار  ",null,null,null,"No.of ansar reading books of H. Masih Maud(as)  "]
[null,null,null,"تعداد مطالعہ کتب حضرت مسیح موعودؑ کرنے والے ممبران عاملہ ",null," No.of Amila mem. reading books of  H. Masih Maud (as)"]
[null,null,null,"تعداد اردو سیکھنے والے انصار",null,"No.of Ansar learning Urdu"]
["(4)شعبہ تعلیم القرآن   :",null,null,null,null,null,null,"Taleem - ul - Quran waqf  - e- arzi"]
[null," تعلیم القرآن کلاس ","صحت کے ساتھ قرآن پڑھنے والےHoly Qura'n with correct pronunciation",null,null,"قرآن کریم باترجمہ    Holy Qur'an with translaion",null,null,"وقف عارضی"]
[null,"Qur'an classes","نہ جاننے والے Not knowing ","سیکھنےوالے    Learners",null,"         نہ جاننے والے         Not knowing","سیکھنےوالے/Learners",null,"Waqf-e-arzi"]
["شامل اراکین عاملہ",null,null,null,null,null,null,null,null,"participants Amila members"]
["شامل دیگر انصار",null,null,null,null,null,null,null,null,"Other Ansar Participated"]
["(5)شعبہ تربیت ",null,null,"Tarbiyat"]
["تاریخ تربیتی اجلاس",null,null,null,null,"Date of Tarbiyati meeting","تعداد شاملین",null,"No. of Particpants"]
[null,"پنجوقتہ نماز","      نماز باترجمہ  Namaz  with  translation",null,"تلقین نماز پروگرام","بچوں کی نماز کی نگرانی","روزانہ تلاوت ","نفلی روزہ ","خطبہ جمعہ بذریعہ MTA "]
[null,"5 daily prayers","نہ جاننے والے   not knowing  ","سیکھنے والے    Learners","awareness for salat Program","supervision of children's Namaz","Daily Tilawat","Nafli Roza","Watching Huzoor's Friday  sermons on MTA"]
["شامل اراکین عاملہ",null,null,null,null,null,null,null,null,"participants Amila members"]
["شامل دیگر انصار",null,null,null,null,null,null,null,null,"Other Ansar Participated"]
["(6)شعبہ تربیت نومبائعین:",null,null,"Tarbiyat Nau Muba'een",null,null,null,"کل تعدادنومبائعین",null," Total Nau Muba'een "]
[null,null,null,null,"(بعدبیعت تین سال تک انصار نومبائعین میں شمارہوں گے)",null,null,null,null,"counted Nau muba'een only upto 3 year's after bai'at"]
[null,"پنجوقتہ نماز","نماز باجماعت","اجلاسات نومبائعین","پروگرام مواخات","روزانہ تلاوت ","فعال نومبائعین","خطبہ جمعہ بذریعہ MTA "]
[null,"5 daily prayers","congregatio-nal prayers","Nau Muba'een meeting","Mawakhat","daily Tilawat","Active Nau Muba'een","watching Huzoor's Friday  sermons on MTA"]
["تعداد شاملین",null,null,null,null,null,null,null,null," No.of participants"]
[null,null,null,null,null,"Mawakhat:-Programmes should be conducted to strengthen love and brotherhood among nau muba'een ","مجالس نومبائعین میں محبت اور بھائی چارہ پیداکرنے کے لئے ہر ماہ مواخات کے پروگرام منعقد کریں"]
["(7)شعبہ تبلیغ:",null,"Tableegh",null,null," ",null," "]
["تعداد داعین","تعدادشاملین وقف ایام ","تعداد مذاکرہ","تعدادزیرتبلیغ افراد","رابطے ماہ رواں","تبلیغی نمائش","تعدادبک اسٹال","سالانہ ٹارگیٹ بیعت","بیعتیں ماہ رواں","بیعتیں سال رواں"]
["no. of da'in","part. In waqfe ayyam","1to1 meets","persons in contact","New contacts","Tableegh exhibitions","book stalls","annual target of bai'ats","bai'ats this month","bai'ats current year"]
[]
[]
["تعدا دتقسیم لٹریچر",null,"No. of Literature distributed","تبلیغ بذریعہ سوشل میڈیا Tableegh  on social media",null,"     تبلیغ بذریعہ  .     .ایم ٹی اے            Tableegh by showing MTA",null,"بیعتیں بذریعہ ممبران عاملہ   Bai'ats by Amila mem"]
[null,null,"(8)شعبہ ایثار وخدمت خلق:",null,"تعدادماہ رواں عطیہ خون دینے والے انصار",null,null,"No. of Blood donors of the month"]
["Isaar O khidmat-e-khalq",null,null,null,null,"ضرورتمندوں کی مالی امداد ",null,null,"amount distributed for needy"]
[null,null,"کتنے انصار نےمریضوں یا معمرافراد کی مزج پرسی کی","عیادت/Sick","معمر/Elderly","اخراجات علاج معالجہ اندازاً",null,null," medical aid in Rupees"]
["How many Ansar visited sick or elderly ?",null,null,null,null,"  کتنےانصار نے بھوکوں کو کھانا کھلایا گیا",null,"No. Ansar participated in Food for Hungry Programme"]
[null," تعدادمیڈیکل کیمپ",null,"No. of Medical camps",null,null," تعداداجتماعی قارعمل",null,"No. of waqar e amal "]
[null,null,"(9)شعبہ ذہانت وصحت جسمانی:",null,null,"Zahanat-o- Sehat-e-jismani","                 ورز ش کے طور پر سائیکل چلانے والے انصار کی تعداد                       No.of Ansar Ansar cycling for exercise "]
["روزانہ سیر،ورزش،کھیل میں شامل ہونے والے انصارکی تعداد",null,null,null,null,null,"صف اوّلSaff I","صف دوئمSaff II","ممبران عاملہ","Amila members"]
[null,null,null,"  No.of Ansar performing daily physical activities, walks etc"]
["(10)شعبہ صف دوم:",null,null,null," Saff-e- Doem",null,null,"(صرف41تا55سال کے انصارشمارہوں گے)",null," Only for  41 to 55 Age group"]
["دورانِ ماہ وصیت کرنے والے انصارصف دوم  کی فہرست فارم ھٰذا کے ساتھ منسلک کریں",null,null,null,null,null,null,null,null,"New moosiyan saff-e-Doem this month  attach list of "]
["(11)شعبہ اشاعت:",null,null,"Isha'at"]
[null,null,null,"تعداد خریداران رسالہ انصار اللہ",null,null,"subscribers of magazine Ansarullah"]
[null,null,"رسالہ انصار اللہ کے لئے بھجوائے گئے مضامین کی تعداد",null,null,null,"No.of articals submitted for Ansarullah magazine"]
[null,null,null," تعدادانصارخریداران اخباربدر ",null,null,"Subscirbers of Badr"]
[null,"(14)شعبہ مال:"," Maal"]
[null,null,null,null,"تاریخ ہفتہ مال",null,null,"Hafta Maal held on"]
[null,null,null,null,null,"ہفتہ مال سال میں دو لازمی ہیں",null,null,null,"Hafta maal Must organise twice annually"]
["چندہ کی ماہانہ وصولی کی رپورٹ فارم ھٰذا کے ساتھ منسلک کریں",null,null,null,null,null,null,null,null,"Attache monthly chanda report with this form"]
["(15)شعبہ آڈٹ:",null,null,"Audit"]
[null,null,null,"تاریخ روانگی  آڈٹ رپورٹ ",null,null,"Audit report dispatched on"]
[null,null,null,"تاریخ   آڈٹ بذریعہ نمائندہ مرکز",null,null,"Audited by markazi representive on"]
["   دستخط زعیم/زعیم اعلیٰ مع تاریخ sig.zaeem/zaeem-e-Aala",null,null,null,null,"E-mail ID",null,null,"   دستخط منتظم عمومی مع تاریخ sig.Muntazim Umoomi"]
[null,null,null,null,null,"phone No"]

{"sheet":"Data","index":1,"n_rows":6,"n_cols":78,"rows_kept":6,"cut":false,"hidden":true,"merged":[]}
[]
["نام مجلس","ضلع","صوبہ","بابت  ماہ","سال","کل تجنید","سائقین","کیارجسٹرتجنیدمکمل ہے؟","تعدادانصارصف اول","تعدادانصار صف دوئم","موصیان صف اول ","موصیان صف دوئم","تعدادممبران عاملہ","پنجوقتہ نماز","روزانہ تلاوت ","نفلی روزہ","مطالعہ کتب","خطبہ جمعہ بذریعہ MTA ","موصیان  ","وقف عارضی","بیعتیں ماہ رواں","سائیکلنگ یا سیر","تاریخ اجلاس عاملہ","اجلاس عاملہ برائےقیام نماز","تعداد مطالعہ کتب حضرت مسیح موعودؑ کرنے والے انصار","نام زیر مطالعہ کتب"," تعلیم القرآن کلاس ","صحت کے ساتھ قرآن جاننے والے","صحت کے ساتھ قرآن سیکھنےوالے","قرآن کریم باترجمہ جاننے والے","قرآن کریم باترجمہ سیکھنے والے","وقف عارضی2","تاریخ تربیتی اجلاس","تعداد شاملین","پنجوقتہ نماز3","نماز باترجمہ جاننے والے","نماز باترجمہ سیکھنے والے","تلقین نماز پروگرام","بچوں کی نماز کی نگرانی","روزانہ تلاوت 4","نفلی روزہ ","خطبہ جمعہ بذریعہ MTA  ","تعدادنومبائعین","پنجوقتہ نماز ","نماز باجماعت","اجلاسات نومبائعین","پروگرام مواخات","روزانہ تلاوت  ","فعال نومبائعین","خطبہ جمعہ بذریعہ MTA","تعداد داعین","تعدادشاملین وقف ایام ","تعداد مذاکرہ","تعدادزیرتبلیغ افراد","رابطے ماہ رواں","تبلیغی نمائش","تعدادبک اسٹال","سالانہ ٹارگیٹ بیعت","بیعتیں ماہ رواں ","بیعتیں سال رواں","تعدا دتقسیم لٹریچر","تبلیغی پروگرامز بذریعہ سوشل میڈیا","تبلیغ بذریعہ ایم ٹی اے","تعدادماہ رواں عطیہ خون دینے والے انصار","ضرورتمندوں کی مالی امداد"," اخراجات علاج معالجہ اندازاً","عیادت","معمر"," کے تحت کتنے بھوکوں کو کھانا کھلایا گیا","میڈیکل کیمپ","اجتماعی قارعمل","سیر","سائکلنگ I","سائکلنگ II","وصیت ماہ رواںII","مضامین برائے رسالہ انصاراللہ","تعداد خریداران رسالہ انصار اللہ","شاملین اجلاس عاملہ "]
[1,2,3,4,5,6,7,8,9,3,2,6,7,8,9,10,1,2,3,4,5,6,7,9,10,1,2,3,4,5,6,7,8,9,10,1,2,3,4,5,6,7,8,9,10,1,2,3,4,5,6,7,8,9,10,1,2,3,4,5,6,7,8,9,10,1,2,3,4,5,6,9,7,8,10,1,5,8]
[1,2,3,4,5,6,7,8,9,3,2,6,7,8,9,10,1,2,3,4,5,6,7,9,10,1,2,3,4,5,6,7,8,9,10,1,2,3,4,5,6,7,8,9,10,1,2,3,4,5,6,7,8,9,10,1,2,3,4,5,6,7,8,9,10,1,2,3,4,5,6,9,7,8,10,1,5,8]
[1,2,3,4,5,6,7,8,9,3,2,6,7,8,9,10,1,2,3,4,5,6,7,9,10,1,2,3,4,5,6,7,8,9,10,1,2,3,4,5,6,7,8,9,10,1,2,3,4,5,6,7,8,9,10,1,2,3,4,5,6,7,8,9,10,1,2,3,4,5,6,9,7,8,10,1,5,8]
[1,1,1,1,1,1,1,1,1,1,11,1,1,1,111,1,1,2,1,1,1,1,1,1,1,1,1,1,1,1,1,1,8,1,1,1,1,1,1,1,1,1,1,9,1,1,1,1,1,1,1,1,1,1,1,1,1,1,1,1,1,1,1,9,1,1,1,1,1,1,1,1,1,1,1,1,1,1]

{"sheet":"Sum Report Form","index":2,"n_rows":65,"n_cols":10,"rows_kept":65,"cut":false,"hidden":true,"merged":[[14,8,14,9],[61,6,61,8],[62,3,62,4],[62,6,62,8],[63,2,63,3],[63,6,63,7],[46,8,47,9],[38,5,38,6],[38,8,38,9],[41,3,41,5],[41,6,41,9],[42,0,42,3],[44,0,44,2],[27,7,27,8],[28,7,28,8],[31,0,31,1],[64,0,64,2],[64,3,64,4],[64,6,64,7],[57,0,57,1],[58,0,58,1],[59,0,59,1],[60,0,60,1],[61,0,61,2],[61,3,61,4],[37,8,37,9],[56,0,56,1],[45,0,45,3],[45,5,45,7],[46,0,46,2],[46,4,46,6],[47,0,47,1],[48,0,49,1],[48,5,48,6],[48,8,48,9],[50,0,50,2],[50,3,50,4],[25,0,25,2],[25,3,25,6],[31,2,31,3],[36,5,36,6],[37,0,37,3],[37,5,37,6],[17,0,17,2],[21,0,21,1],[21,5,21,6],[22,8,22,9],[23,8,23,9],[6,8,6,9],[39,8,39,9],[0,1,0,3],[0,4,0,5],[0,6,0,8],[1,5,1,9],[5,0,5,1],[18,0,19,0],[7,8,7,9],[8,8,8,9],[10,0,10,2],[10,7,10,8],[15,0,15,1],[15,6,15,9],[16,3,16,4],[16,8,16,9]]}
[null,"بِسْمِ اللہِ الرَّحْمٰنِ الرَّحِیْم      ",null,null,"نَحْمَدُہٗ وَنُصَلِّی عَلٰی رَسُوْلِہِ الْکَرِیْمِ   ",null,"   وَعَلٰی عَبْدِ ہِ الْمَسِیْحِ الْمَوْعُوْد       "]
["ماہانہ کارگزاری رپورٹ فارم مجالس انصاراللہ بھارت ",null,null,null,null,"Monthly Report Form Majalis Ansarullah Bharat"]
["روانگی نمبر وتاریخ",null,"Dispatch No. & Date","نام مجلس","ضلع","صوبہ","بابت  ماہ","سال","آمد دفتر"]
[null,null,null,"Majlis","Dist","State","Month","year"]
[null,null,null,{"$f":"Report!D6","v":0},{"$f":"Report!E6","v":0},{"$f":"Report!F6","v":0}]
["(1)شعبہ تجنید:",null,"Tajneed","کل تجنید",null,"Total Tajneed",null,"تعداد سائقین",null,"No.of Saiqeen"]
[null,"تعداد انصار","اضافہ ماہ رواں","کمی ماہ رواں","موصیان",null,"کیارجسٹرتجنیدمکمل ہے؟",null,"Is register tajneed completed?"]
[null,"Total Ansar","Inclusion","exclusion","moosi",null,"ماہ رواں میں نئے شاملین کے اسماء الگ سے بھیجیں",null,"*list of new changes should be sent accordingly"]
["صف اوّل",null,null,null,null,"Saff-I","فہرست تجنید سال نو31جنوری تک پہنچنا لازمی ہے",null,"Tajneed form must be submitted to markaz before 31 jan"]
["صف دوم",null,null,null,null,"Saff-II"]
["(2)شعبہ عمومی:",null,null,"Umoomi",null,"تعدادممبران عاملہ",null,"No. of Amila members"]
[null,"پنجوقتہ نماز","روزانہ تلاوت ","نفلی روزہ","مطالعہ کتب","خطبہ جمعہ بذریعہ MTA ","موصیان  ","وقف عارضی","بیعتیں ماہ رواں","سائیکلنگ یا سیر"]
["No.of Amila members participated","5 daily prayers","daily Tilawat","Nafli Roza"," reading books of H Masih Maud(as)","watching Friday sermon on MTA","moosi","waqf e aarzi","new ba'its"," cycling or walking"]
["شامل اراکین عاملہ",null,null,null,null,null,null,null,{"$f":"SUM(Table2[بیعتیں ماہ رواں])","v":16}]
["تاریخ اجلاس عاملہ",null,"Amila meeting held on","تعداد شاملین",null," attaindence","اجلاس عاملہ برائےقیام نماز",null,"Spl.Amila meeting on namaz"]
["(3) شعبہ تعلیم:",null,"تعداد مطالعہ کتب حضرت مسیح موعودؑ کرنے والے انصار",null,null,null,"No.of ansar reading books of  H. Masih Maud (as)"]
[null,"Taleem",null,"نام زیر مطالعہ کتب",null,null,null,null,"Name of books"]
["(4)شعبہ تعلیم القرآن   :",null,null,null,null,null,"Taleem-ul-Quran wa waqf-e-arzi"]
["No.of paticipants"," تعلیم القرآن کلاس ","صحت کے ساتھ قرآن پڑھنے والے",null,null,"Holy Qura'n with correct pronunciation","قرآن کریم باترجمہ",null,"Holy Qur'an with translaion","وقف عارضی"]
[null,"Qur'an classes","جاننے والے","Knowers","سیکھنے والے","Learners","جاننے والے","Knowers","سیکھنےوالے/Learners","Qaqf-e-arzi"]
["تعداد شاملین"]
["(5)شعبہ تربیت ",null,"Tarbiyat","تاریخ تربیتی اجلاس",null,"Date of Tarbiyati meeting",null,"تعداد شاملین",null,"No. of Particpants"]
["پروگرام","پنجوقتہ نماز","نماز باترجمہ","Namaz  with  translation","تلقین نماز پروگرام","بچوں کی نماز کی نگرانی","روزانہ تلاوت ","نفلی روزہ ","خطبہ جمعہ بذریعہ MTA "]
["program","5 daily prayers","جاننے والے   Knowers  ","سیکھنے والے    Learners","awareness for salat","supervision of children's salat","daily Tilawat","Nafli Roza","watching Huzoor's Friday  sermons on MTA"]
["تعداد شاملین",null,null,null,null,null,null,null,null,"participants"]
["(6)شعبہ تربیت نومبائعین:",null,null,"Tarbiyat Nau Muba'een",null,null,null,"تعدادنومبائعین:-",null," Total Nau Muba'een "]
[null,null,null,null,null,null,"(بعدبیعت تین سال تک انصار نومبائعین میں شمارہوں گے)",null,null,"counted Nau muba'een only upto 3 year's after bai'at"]
["پروگرام","پنجوقتہ نماز","نماز باجماعت","اجلاسات نومبائعین","پروگرام مواخات","روزانہ تلاوت ","فعال نومبائعین","خطبہ جمعہ بذریعہ MTA "]
["programmes","5 daily prayers","congregatio-nal prayers","Nau Muba'een meeting","Mawakhat","daily Tilawat","Active Nau Muba'een","watching Huzoor's Friday  sermons on MTA"]
["تعداد شاملین",null,null,null,{"$f":"SUM(Table2[پروگرام مواخات])","v":7},null,null,null," No.of participants"]
[null,null,null,null,null,"Mawakhat:-Programmes should be conducted to strengthen love and brotherhood among nau muba'een ",null,null,null,"(مجالس نومبائعین میں محبت اور بھائی چارہ پیداکرنے کے لئے ہر ماہ مواخات کے پروگرام منعقد کریں)"]
["(7)شعبہ تبلیغ:",null,"Tableegh",null,null," ",null," "]
["تعداد داعین","تعدادشاملین وقف ایام ","تعداد مذاکرہ","تعدادزیرتبلیغ افراد","رابطے ماہ رواں","تبلیغی نمائش","تعدادبک اسٹال","سالانہ ٹارگیٹ بیعت","بیعتیں ماہ رواں","بیعتیں سال رواں"]
["no. of da'in","part. In waqfe ayyam","1to1 meets","persons in contact","New contacts","Tableegh exhibitions","book stalls","annual target of bai'ats","bai'ats this month","bai'ats current year"]
[null,null,{"$f":"SUM(Table2[تعداد مذاکرہ])","v":25},null,null,{"$f":"SUM(Table2[تبلیغی نمائش])","v":4},{"$f":"SUM(Table2[تعدادبک اسٹال])","v":7},null,{"$f":"SUM(Table2[[بیعتیں ماہ رواں ]])","v":13},{"$f":"I35","v":13}]
["تعدا دتقسیم لٹریچر",{"$f":"SUM(Table2[تعدا دتقسیم لٹریچر])","v":19},"No. of Literature distributed","تبلیغی پروگرامز بذریعہ سوشل میڈیا",{"$f":"SUM(Table2[تبلیغی پروگرامز بذریعہ سوشل میڈیا])","v":22},"Tableegh events Through social media","تبلیغ بذریعہ  ..ایم ٹی اے",{"$f":"SUM(Table2[تبلیغ بذریعہ ایم ٹی اے])","v":25},"Tableegh by showing MTA"]
[null,null,"(8)شعبہ ایثار وخدمت خلق:",null,null,"تعدادماہ رواں عطیہ خون دینے والے انصار",null,{"$f":"SUM(Table2[تعدادماہ رواں عطیہ خون دینے والے انصار])","v":36},null,"No. of Blood donors of the month"]
["Isaar O khidmat-e-khalq",null,null,null,null,"ضرورتمندوں کی مالی امداد ",null,{"$f":"SUM(Table2[ضرورتمندوں کی مالی امداد])","v":31},"amount distributed for needy"]
[null,null,"کتنے انصار نےمریضوں یا معمرافراد کی مزج پرسی کی","عیادت/Sick","معمر/Elderly","اخراجات علاج معالجہ اندازاً",null,{"$f":"SUM(Table2[[ اخراجات علاج معالجہ اندازاً]])","v":4}," medical aid in Rupees"]
[null,null,"How many Ansar visited sick or elderly ?",{"$f":"SUM(Table2[عیادت])","v":7},{"$f":"SUM(Table2[معمر])","v":10},"  کتنےانصار نے بھوکوں کو کھانا کھلایا گیا",{"$f":"SUM(Table2[[ کے تحت کتنے بھوکوں کو کھانا کھلایا گیا]])","v":13},null,"No. Ansar participated in Food for Hungry Programme"]
[null," تعدادمیڈیکل کیمپ",{"$f":"SUM(Table2[میڈیکل کیمپ])","v":16},"No. of Medical camps",null,null," تعداداجتماعی قارعمل",{"$f":"SUM(Table2[اجتماعی قارعمل])","v":19},"No. of waqar e amal "]
[null,null,"(9)شعبہ ذہانت وصحت جسمانی:","Zahanat-o- Sehat-e-jismani",null,null,"ورز ش کے طور پر سائیکل چلانے والے انصار کی تعداد"]
["روزانہ سیر،ورزش،کھیل میں شامل ہونے والے انصارکی تعداد",null,null,null,null,null,"صف اوّل","Saff I","صف دوئم","Saff II"]
[null,null,null,"  No.of Ansar performing daily physical activities, walks etc"]
["(10)شعبہ صف دوم:",null,null,null," Saff-e- Doem",null,null,"(صرف41تا55سال کے انصارشمارہوں گے)",null," Only for  41 to 55 Age group"]
["تعداددورانِ ماہ وصیت کرنے والے انصارصف دوم:",null,null,null,{"$f":"SUM(Table2[وصیت ماہ رواںII])","v":31},"New moosiyan saff-e-Doem this month",null,null,"attach list","نام علیحدہ بھیجیں"]
["(11)شعبہ اشاعت:",null,null,"Isha'at","رسالہ انصار اللہ کے لئے بھجوائے گئے مضامین کی تعداد",null,null,{"$f":"SUM(Table2[مضامین برائے رسالہ انصاراللہ])","v":4},"No.of articals submitted for Ansarullah magazine"]
["تعداد خریداران رسالہ انصار اللہ",null,"سابقہ","اضافہ ماہ رواں","میزان"]
["subscribers of magazine Ansarullah",null,"Regular","New","Total"," تعدادانصارخریداران اخباربدر ",null,null,"Subscirbers of  Badr"]
[]
["(12)شعبہ تحریک جدید:",null,null,"Tehrik-e-Jadeed",null,null,"(13)شعبہ وقف جدید:",null,"Waqf-e-Jadeed"]
["چندہ تحریک جدید","شاملین","اضافہ شاملین ماہ رواں","میزان","غیرشاملین","چندہ وقف جدید","شاملین","اضافہ شاملین ماہ رواں","میزان","غیرشاملین"]
[" Tehrik-e-Jadeed","Regular","New","Total","not included yet"," chanda Waqf-e -Jadeed","Regular","New","Total","not included yet"]
[]
[null,null,null,null,null,"ہردو تحریکات میں تاحال شامل نہ ہونے والے انصار کی علیحدہ علیحدہ فہرستیں  منسلک کریں",null,null,null,"Attach separate lists of ansar who are still not a part of both Tehreeks"]
[null,"(14)شعبہ مال:"," Maal",null,"تاریخ ہفتہ مال:",null,"Hafta Maal held on",null,"(سال میں دو لازمی ہیں)"]
["نام چندہ",null,"چندہ مجلس","چندہ سالانہ اجتماع","چندہ اشاعت لٹریچر","عطایا و متفرق","میزان",null,null,"Must organise twice annually"]
["Name Chanda",null,"Majlis","Ijtema","Isha'at literature","Ataaya","Total"]
["بجٹ سال رواں",null,null,null,null,null,null,"Budget"]
["تاحال وصولی",null,null,null,null,null,null,"collections"]
["تاحال قابل وصول رقم",null,null,null,null,null,null,"Balance"]
["(15)شعبہ آڈٹ:",null,null,"تاریخ روانگی  آڈٹ رپورٹ ",null,null,"Audit report dispatched on"]
[null,"Audit",null,"تاریخ   آڈٹ بذریعہ نمائندہ مرکز",null,null,"Audited by markazi representive on"]
[null,null,null,null,null,"  ای میل آئی ڈی",null,null,"E-mail ID"]
["   دستخط زعیم/زعیم اعلیٰ مع تاریخ",null,null,"sig.zaeem/zaeem-e-Aala",null,"   فون نمبر",null,null,"phone No"]